fUST/lending_fUST_20240225
["ID","MTS","AMOUNT","RATE_DAILY","PERIOD"]
[315086992,1708809042370,-500.0,0.00020939,2]
[315086993,1708809042380,-500.0,0.00020939,2]
[315086994,1708809042389,-727.22,0.00020939,2]
[315086995,1708809042399,-652.25,0.00020939,2]
[315086996,1708809042408,-1187.73,0.00020939,2]
[315086997,1708809042417,-758.89,0.00020939,2]
[315086998,1708809042427,-500.0,0.00020939,2]
[315086999,1708809042436,-500.0,0.00020939,2]
[315087000,1708809042446,-649.17,0.00020939,2]
[315087001,1708809042455,-1090.97,0.00020939,2]
[315087002,1708809042464,-769.77,0.00020939,2]
[315087003,1708809042473,-540.11,0.00020939,2]
[315087004,1708809042483,-4699.89,0.00020939,2]
[315087005,1708809042492,-573.48,0.00020939,2]
[315087006,1708809042501,-500.0,0.00020939,2]
[315087007,1708809042511,-3160.11,0.00020939,2]
[315087008,1708809042520,-1949.88,0.00020939,2]
[315087009,1708809042529,-5105.43,0.00020939,2]
[315087010,1708809042539,-1267.21,0.00020939,2]
[315087011,1708809042548,-50000.0,0.00020951,2]
[315087012,1708809042558,-50000.0,0.00020951,2]
[315087013,1708809042567,-50000.0,0.00020951,2]
[315087014,1708809042577,-166.666666,0.00020973,2]
[315087015,1708809042586,-173.037491,0.00020998,2]
[315087016,1708809042596,-569.840815,0.00021,9]
[315087017,1708809042606,-155.103732,0.00021171,2]
[315087018,1708809042615,-620.65998884,0.00021202,2]
[315087019,1708809042625,-500.0,0.00021211,2]
[315087020,1708809042635,-500.0,0.00021211,2]
[315087021,1708809042644,-1168.68,0.00021211,2]
[315087022,1708809042654,-949.16,0.00021211,2]
[315087023,1708809042663,-1324.09,0.00021211,2]
[315087024,1708809042672,-704.22,0.00021211,2]
[315087025,1708809042681,-1241.48,0.00021211,2]
[315087026,1708809042690,-6504.93,0.00021211,2]
[315087027,1708809042700,-1404.07,0.00021211,2]
[315087028,1708809042709,-500.0,0.00021212,2]
[315087030,1708809042718,-500.0,0.00021212,2]
[315087031,1708809042728,-500.0,0.00021212,2]
[315087032,1708809042737,-500.0,0.00021212,2]
[315087033,1708809042746,-592.99,0.00021212,2]
[315087034,1708809042756,-5003.83,0.00021212,2]
[315087035,1708809042765,-500.0,0.00021212,2]
[315087036,1708809042774,-500.0,0.00021212,2]
[315087038,1708809042783,-502.6,0.00021212,2]
[315087040,1708809042792,-500.0,0.00021213,2]
[315087041,1708809042801,-500.0,0.00021213,2]
[315087042,1708809042810,-727.22,0.00021213,2]
[315087043,1708809042819,-652.25,0.00021213,2]
[315087044,1708809042828,-1187.73,0.00021213,2]
[315087045,1708809042840,-758.89,0.00021213,2]
[315087046,1708809042849,-500.0,0.00021213,2]
[315087047,1708809042858,-500.0,0.00021213,2]
[315087048,1708809042867,-649.17,0.00021213,2]
[315087049,1708809042877,-1090.97,0.00021213,2]
[315087050,1708809042886,-769.77,0.00021213,2]
[315087051,1708809042895,-540.11,0.00021213,2]
[315087052,1708809042905,-4699.89,0.00021213,2]
[315087053,1708809042914,-573.48,0.00021213,2]
[315087054,1708809042924,-503.95786474,0.00021213,2]
[315087055,1708809042934,-3160.11,0.00021213,2]
[315087056,1708809042943,-1949.88,0.00021213,2]
[315087057,1708809042952,-5105.43,0.00021213,2]
[315087058,1708809042961,-1267.21,0.00021213,2]
[315087059,1708809042970,-153.0,0.0002126,2]
[315087060,1708809042980,-153.0,0.0002126,2]
[315087061,1708809042989,-153.0,0.0002126,2]
[315087062,1708809042998,-188.86999405,0.00021299,2]
[315087063,1708809043007,-361.44431229,0.00021299,2]
[315087064,1708809043017,-687.98727612,0.00021299,2]
[315087065,1708809043026,-173.037491,0.00021343,2]
[315087067,1708809043036,-153.0,0.0002137,2]
[315087069,1708809043045,-153.0,0.0002137,2]
[315087071,1708809043054,-412.6272426,0.0002137,2]
[315087073,1708809043063,-166.666666,0.00021422,2]
[315087075,1708809043072,-200.5294442,0.00021452,2]
[315087077,1708809043081,-200.5294442,0.00021452,2]
[315087078,1708809043091,-200.5294442,0.00021452,2]
[315087080,1708809043100,-200.5294442,0.00021452,2]
[315087081,1708809043109,-500.0,0.00021485,2]
[315087083,1708809043119,-500.0,0.00021485,2]
[315087085,1708809043128,-1168.68,0.00021485,2]
[315087086,1708809043137,-949.16,0.00021485,2]
[315087087,1708809043147,-1324.09,0.00021485,2]
[315087088,1708809043156,-704.22,0.00021485,2]
[315087089,1708809043165,-1241.48,0.00021485,2]
[315087090,1708809043175,-6504.93,0.00021485,2]
[315087091,1708809043184,-1404.07,0.00021485,2]
[315087092,1708809043193,-486.91,0.00021486,2]
[315087093,1708809043203,-348.97463723,0.00021486,2]
[315087094,1708809043213,-500.0,0.00021486,2]
[315087095,1708809043222,-500.0,0.00021486,2]
[315087096,1708809043232,-592.99,0.00021486,2]
[315087097,1708809043241,-5003.83,0.00021486,2]
[315087098,1708809043250,-500.0,0.00021486,2]
[315087099,1708809043259,-502.6,0.00021486,2]
[315087100,1708809043268,-500.0,0.00021487,2]
[315087101,1708809043277,-500.0,0.00021487,2]
[315087102,1708809043287,-727.22,0.00021487,2]
[315087103,1708809043296,-652.25,0.00021487,2]
[315087104,1708809043305,-1187.73,0.00021487,2]
[315087105,1708809043315,-758.89,0.00021487,2]
[315087106,1708809043324,-500.0,0.00021487,2]
[315087107,1708809043333,-500.0,0.00021487,2]
[315087108,1708809043342,-649.17,0.00021487,2]
[315087109,1708809043351,-1090.97,0.00021487,2]
[315087110,1708809043360,-769.77,0.00021487,2]
[315087111,1708809043369,-540.11,0.00021487,2]
[315087112,1708809043378,-2593.30286,0.00021487,2]
[315087113,1708809043387,-2593.30286,0.00021487,2]
[315087114,1708809043396,-4699.89,0.00021487,2]
[315087115,1708809043406,-573.48,0.00021487,2]
[315087116,1708809043415,-3160.11,0.00021487,2]
[315087117,1708809043424,-1949.88,0.00021487,2]
[315087118,1708809043434,-5105.43,0.00021487,2]
[315087119,1708809043443,-151.0,0.00021487,2]
[315087120,1708809043453,-1267.21,0.00021487,2]
[315087121,1708809043462,-151.0,0.00021533,2]
[315087122,1708809043472,-50000.0,0.00021592,2]
[315087123,1708809043482,-8578.72897719,0.000216,2]
[315087124,1708809043492,-155.103732,0.00021687,2]
[315087125,1708809043502,-186.574001,0.00021687,2]
[315087126,1708809043513,-166.497538,0.00021687,2]
[315087127,1708809043522,-173.037491,0.00021687,2]
[315087128,1708809043532,-225.87296123,0.00021759,2]
[315087129,1708809043541,-1168.68,0.00021759,2]
[315087130,1708809043551,-949.16,0.00021759,2]
[315087131,1708809043560,-1324.09,0.00021759,2]
[315087132,1708809043569,-220.596274,0.00021759,2]
[315087133,1708809043579,-704.22,0.00021759,2]
[315087134,1708809043588,-1241.48,0.00021759,2]
[315087135,1708809043597,-6504.93,0.00021759,2]
[315087136,1708809043608,-1404.07,0.00021759,2]
[315087137,1708809043617,-500.0,0.0002176,2]
[315087138,1708809043626,-500.0,0.0002176,2]
[315087139,1708809043635,-592.99,0.0002176,2]
[315087140,1708809043644,-5003.83,0.0002176,2]
[315087141,1708809043653,-500.0,0.0002176,2]
[315087142,1708809043661,-502.6,0.0002176,2]
[315087143,1708809043670,-500.0,0.00021761,2]
[315087144,1708809043679,-500.0,0.00021761,2]
[315087145,1708809043688,-727.22,0.00021761,2]
[315087146,1708809043697,-652.25,0.00021761,2]
[315087147,1708809043707,-1187.73,0.00021761,2]
[315087148,1708809043717,-758.89,0.00021761,2]
[315087149,1708809043726,-500.0,0.00021761,2]
[315087150,1708809043736,-500.0,0.00021761,2]
[315087151,1708809043746,-649.17,0.00021761,2]
[315087152,1708809043755,-1090.97,0.00021761,2]
[315087153,1708809043764,-769.77,0.00021761,2]
[315087154,1708809043773,-540.11,0.00021761,2]
[315087155,1708809043782,-4699.89,0.00021761,2]
[315087156,1708809043791,-573.48,0.00021761,2]
[315087157,1708809043800,-3160.11,0.00021761,2]
[315087158,1708809043810,-1949.88,0.00021761,2]
[315087159,1708809043820,-5105.43,0.00021761,2]
[315087160,1708809043831,-1267.21,0.00021761,2]
[315087161,1708809043842,-153.3652553,0.00021783,2]
[315087162,1708809043852,-5000.0,0.0002182,2]
[315087163,1708809043861,-133279.46560865,0.00021843,2]
[315087164,1708809043869,-277.017551,0.00021843,2]
[315087165,1708809043882,-291.273151,0.00021843,2]
[315087166,1708809043893,-291.273151,0.00021843,2]
[315087167,1708809043903,-3471.816401,0.00021843,2]
[315087168,1708809043915,-3471.816401,0.00021843,2]
[315087169,1708809043925,-151.0,0.00021843,2]
[315087170,1708809043935,-2593.30286,0.00021843,2]
[315087171,1708809043944,-2593.30286,0.00021843,2]
[315087172,1708809043954,-151.0,0.00021843,2]
[315087173,1708809043963,-176.6179955,0.00021918,2]
[315087174,1708809043971,-200.5294442,0.00021946,2]
[315087175,1708809043981,-200.5294442,0.00021946,2]
[315087176,1708809043990,-200.5294442,0.00021946,2]
[315087177,1708809043999,-200.5294442,0.00021946,2]
[315087178,1708809044009,-200.5294442,0.00021946,2]
[315087179,1708809044019,-627.99429575,0.00022,2]
[315087180,1708809044029,-3214.44555769,0.00022,4]
[315087181,1708809044038,-1168.68,0.00022033,2]
[315087182,1708809044047,-949.16,0.00022033,2]
[315087183,1708809044056,-1324.09,0.00022033,2]
[315087184,1708809044065,-704.22,0.00022033,2]
[315087185,1708809044074,-1241.48,0.00022033,2]
[315087186,1708809044083,-6504.93,0.00022033,2]
[315087187,1708809044093,-1404.07,0.00022033,2]
[315087188,1708809044102,-500.0,0.00022034,2]
[315087189,1708809044111,-500.0,0.00022034,2]
[315087190,1708809044122,-592.99,0.00022034,2]
[315087191,1708809044131,-5003.83,0.00022034,2]
[315087192,1708809044141,-373.58487852,0.00022034,2]
[315087193,1708809044151,-502.6,0.00022034,2]
[315087194,1708809044160,-500.0,0.00022035,2]
[315087195,1708809044170,-500.0,0.00022035,2]
[315087196,1708809044180,-727.22,0.00022035,2]
[315087197,1708809044189,-652.25,0.00022035,2]
[315087198,1708809044199,-1187.73,0.00022035,2]
[315087199,1708809044209,-758.89,0.00022035,2]
[315087200,1708809044219,-162.41708873,0.00022035,2]
[315087201,1708809044229,-500.0,0.00022035,2]
[315087202,1708809044329,-649.17,0.00022035,2]
[315087203,1708809044339,-1090.97,0.00022035,2]
[315087204,1708809044349,-769.77,0.00022035,2]
[315087205,1708809044359,-540.11,0.00022035,2]
[315087206,1708809044367,-4699.89,0.00022035,2]
[315087207,1708809044377,-573.48,0.00022035,2]
[315087208,1708809044386,-3160.11,0.00022035,2]
[315087209,1708809044396,-1949.88,0.00022035,2]
[315087210,1708809044405,-5105.43,0.00022035,2]
[315087211,1708809044414,-1267.21,0.00022035,2]
[315087212,1708809044422,-5000.0,0.00022039,2]
[315087213,1708809044431,-300.0,0.00022041,2]
[315087214,1708809044440,-153.0,0.00022082,2]
[315087215,1708809044449,-301.8299324,0.00022082,2]
[315087216,1708809044458,-153.0,0.00022162,2]
[315087217,1708809044467,-153.0,0.00022162,2]
[315087218,1708809044477,-153.0,0.00022162,2]
[315087219,1708809044486,-153.0,0.00022162,2]
[315087220,1708809044495,-153.0,0.00022162,2]
[315087221,1708809044506,-153.0,0.00022162,2]
[315087222,1708809044515,-153.0,0.00022162,2]
[315087223,1708809044524,-67298.53116797,0.00022165,2]
[315087224,1708809044533,-150.0,0.000222,30]
[315087225,1708809044542,-351.0348,0.00022212,2]
[315087226,1708809044552,-306.0,0.00022212,2]
[315087227,1708809044561,-153.0,0.00022212,2]
[315087228,1708809044570,-153.0,0.00022212,2]
[315087229,1708809044579,-153.0,0.00022212,2]
[315087230,1708809044589,-192.82215358,0.00022215,2]
[315087231,1708809044598,-153.0,0.0002222,2]
[315087232,1708809044607,-153.0,0.0002222,2]
[315087233,1708809044617,-300.0,0.00022241,2]
[315087234,1708809044627,-3442.98964015,0.00022259,2]
[315087235,1708809044636,-5000.0,0.00022259,2]
[315087236,1708809044646,-982.83896588,0.00022259,3]
[315087237,1708809044656,-7426.62208642,0.00022259,2]
[315087238,1708809044665,-205.66281465,0.00022259,2]
[315087239,1708809044676,-363.10887771,0.0002226,2]
[315087240,1708809044685,-620.03299944,0.00022262,2]
[315087241,1708809044695,-2593.30286,0.00022273,2]
[315087242,1708809044705,-2593.30286,0.00022273,2]
[315087243,1708809044715,-151.0,0.00022273,2]
[315087244,1708809044724,-47313.77225626,0.00022275,2]
[315087245,1708809044847,-1554.47175405,0.00022275,2]
[315087248,1708809045922,-500.0,0.00019568,2]
[315087249,1708809045932,-500.0,0.00020113,2]
[315087250,1708809045941,-500.0,0.00020113,2]
[315087251,1708809045950,-500.0,0.00020113,2]
[315087252,1708809045960,-500.0,0.00020113,2]
[315087253,1708809045969,-214.96038095,0.00020113,2]
[315087254,1708809045980,-285.03961905,0.00020113,2]
[315087255,1708809045989,-362.88031322,0.00020113,2]
[315087256,1708809045998,-500.0,0.00020113,2]
[315087257,1708809046009,-500.0,0.00020113,2]
[315087258,1708809046018,-500.0,0.00020113,2]
[315087259,1708809046027,-500.0,0.00020113,2]
[315087260,1708809046036,-500.0,0.00020113,2]
[315087261,1708809046046,-500.0,0.00020113,2]
[315087262,1708809046055,-404.6535135,0.00020113,2]
[315087263,1708809046064,-500.0,0.00020113,2]
[315087264,1708809046073,-500.0,0.00020113,2]
[315087265,1708809046082,-395.06321465,0.00020113,2]
[315087266,1708809046095,-104.93678535,0.00020113,2]
[315087267,1708809046105,-500.0,0.00020113,2]
[315087268,1708809046114,-500.0,0.00020113,2]
[315087269,1708809046124,-500.0,0.00020113,2]
[315087270,1708809046133,-500.0,0.00020113,2]
[315087271,1708809046143,-500.0,0.00020113,2]
[315087272,1708809046165,-161.57464485,0.00020113,2]
[315087273,1708809046174,-188.17234431,0.00020113,2]
[315087274,1708809046184,-500.0,0.00020113,2]
[315087275,1708809046193,-500.0,0.00020113,2]
[315087277,1708809046346,-500.0,0.00020113,2]
[315087278,1708809046356,-500.0,0.00020113,2]
[315087279,1708809046366,-500.0,0.00020113,2]
[315087280,1708809046375,-500.0,0.00020113,2]
[315087281,1708809046385,-500.0,0.00020113,2]
[315087282,1708809046394,-500.0,0.00020113,2]
[315087283,1708809046404,-500.0,0.00020113,2]
[315087284,1708809046413,-152.76932582,0.00020113,2]
[315087285,1708809046422,-500.0,0.00020113,2]
[315087286,1708809046432,-500.0,0.00020113,2]
[315087287,1708809046441,-500.0,0.00020113,2]
[315087288,1708809046450,-500.0,0.00020113,2]
[315087289,1708809046459,-500.0,0.00020113,2]
[315087290,1708809046469,-500.0,0.00020113,2]
[315087291,1708809046478,-500.0,0.00020113,2]
[315087292,1708809046487,-500.0,0.00020113,2]
[315087293,1708809046496,-543.58118859,0.00020113,2]
[315087294,1708809046505,-500.0,0.00020113,2]
[315087295,1708809046515,-500.0,0.00020113,2]
[315087296,1708809046524,-246.91902465,0.00020113,2]
[315087297,1708809046533,-500.0,0.00020113,2]
[315087298,1708809046542,-500.0,0.00020113,2]
[315087299,1708809046551,-500.0,0.00020113,2]
[315087300,1708809046560,-500.0,0.00020113,2]
[315087301,1708809046569,-500.0,0.00020113,2]
[315087302,1708809046577,-500.0,0.00020113,2]
[315087303,1708809046586,-500.0,0.00020113,2]
[315087304,1708809046595,-500.0,0.00020113,2]
[315087305,1708809046604,-500.0,0.00020113,2]
[315087306,1708809046613,-500.0,0.00020113,2]
[315087307,1708809046621,-500.0,0.00020113,2]
[315087308,1708809046631,-500.0,0.00020113,2]
[315087309,1708809046640,-500.0,0.00020113,2]
[315087310,1708809046649,-500.0,0.00020113,2]
[315087311,1708809046659,-62.98351545,0.00020113,2]
[315087312,1708809046697,-418.59,0.00019842,2]
[315087313,1708809046708,-437.01648455,0.00020113,2]
[315087314,1708809046717,-500.0,0.00020113,2]
[315087315,1708809046727,-500.0,0.00020113,2]
[315087316,1708809046736,-500.0,0.00020113,2]
[315087317,1708809046746,-500.0,0.00020113,2]
[315087318,1708809046757,-252.85486452,0.00020113,2]
[315087319,1708809046768,-247.14513548,0.00020113,2]
[315087320,1708809046777,-500.0,0.00020113,2]
[315087321,1708809046789,-500.0,0.00020113,2]
[315087322,1708809046799,-500.0,0.00020113,2]
[315087323,1708809046809,-500.0,0.00020113,2]
[315087324,1708809046820,-500.0,0.00020113,2]
[315087325,1708809046830,-500.0,0.00020113,2]
[315087326,1708809046844,-500.0,0.00020113,2]
[315087327,1708809046853,-500.0,0.00020113,2]
[315087328,1708809046863,-500.0,0.00020113,2]
[315087329,1708809046873,-500.0,0.00020113,2]
[315087330,1708809046884,-500.0,0.00020113,2]
[315087331,1708809046894,-500.0,0.00020113,2]
[315087332,1708809046905,-500.0,0.00020113,2]
[315087333,1708809046917,-339.32975393,0.00020113,2]
[315087334,1708809046927,-500.0,0.00020113,2]
[315087335,1708809046937,-500.0,0.00020113,2]
[315087336,1708809046946,-500.0,0.00020113,2]
[315087337,1708809046957,-500.0,0.00020113,2]
[315087338,1708809046966,-500.0,0.00020113,2]
[315087339,1708809046976,-500.0,0.00020113,2]
[315087340,1708809046986,-18.11456631,0.00020113,2]
[315087341,1708809047059,-500.0,0.00019569,2]
[315087342,1708809047069,-164.16267637,0.00020113,2]
[315087343,1708809047116,-174.50251435,0.00020113,2]
[315087344,1708809047126,-75.7359068,0.00020113,2]
[315087345,1708809047138,-424.2640932,0.00020113,2]
[315087346,1708809047147,-500.0,0.00020113,2]
[315087347,1708809047157,-500.0,0.00020113,2]
[315087348,1708809047167,-500.0,0.00020113,2]
[315087349,1708809047176,-500.0,0.00020113,2]
[315087350,1708809047186,-500.0,0.00020113,2]
[315087351,1708809047196,-500.0,0.00020113,2]
[315087352,1708809047206,-500.0,0.00020113,2]
[315087353,1708809047215,-500.0,0.00020113,2]
[315087354,1708809047225,-500.0,0.00020113,2]
[315087355,1708809047235,-500.0,0.00020113,2]
[315087356,1708809047246,-500.0,0.00020113,2]
[315087357,1708809047255,-500.0,0.00020113,2]
[315087358,1708809047264,-500.0,0.00020113,2]
[315087359,1708809047275,-500.0,0.00020113,2]
[315087360,1708809047285,-500.0,0.00020113,2]
[315087361,1708809047294,-500.0,0.00020113,2]
[315087362,1708809047305,-500.0,0.00020113,2]
[315087363,1708809047314,-500.0,0.00020113,2]
[315087364,1708809047324,-500.0,0.00020113,2]
[315087365,1708809047333,-500.0,0.00020113,2]
[315087366,1708809047343,-509.22384333,0.00020113,2]
[315087367,1708809047353,-500.0,0.00020113,2]
[315087368,1708809047363,-500.0,0.00020113,2]
[315087369,1708809047373,-379.51205967,0.00020113,2]
[315087370,1708809224519,1000.0,0.000182,2]
[315087377,1708810159114,-5874.8950045,0.00018539,2]
[315087378,1708810159135,-20420.1765223,0.00018567,2]
[315087379,1708810159285,-169.37820235,0.00019078,2]
[315087380,1708810159305,-145.02593274,0.00019178,2]
[315087911,1708810238423,-163.40269544,0.000187,2]
[315087913,1708810238433,-273.02140514,0.000189,2]
[315087915,1708810238442,-21.64073326,0.00019178,2]
[315087917,1708810238451,-410.69914599,0.00019468,2]
[315087919,1708810238461,-2936.3,0.00019557,3]
[315087921,1708810238471,-2446.92,0.00019557,3]
[315087923,1708810238480,-3709.2,0.00019557,3]
[315087925,1708810238489,-3091.0,0.00019557,3]
[315087927,1708810238498,-155.08374522,0.00019565,2]
[315087929,1708810238508,-6930.85,0.00019565,2]
[315087931,1708810238517,-500.0,0.00019565,2]
[315087933,1708810238526,-500.0,0.00019565,2]
[315087934,1708810238535,-500.0,0.00019565,2]
[315087936,1708810238545,-500.0,0.00019566,2]
[315087938,1708810238555,-500.0,0.00019566,2]
[315087940,1708810238564,-500.0,0.00019566,2]
[315087942,1708810238573,-500.0,0.00019566,2]
[315087945,1708810238583,-500.0,0.00019566,2]
[315087947,1708810238594,-500.0,0.00019566,2]
[315087949,1708810238603,-500.0,0.00019566,2]
[315087951,1708810238612,-500.0,0.00019566,2]
[315087953,1708810238621,-613.60232286,0.00019566,2]
[315087955,1708810238631,-500.0,0.00019566,2]
[315087957,1708810238640,-500.0,0.00019566,2]
[315087959,1708810238650,-500.49141179,0.00019566,2]
[315087960,1708810238660,-500.65626971,0.00019566,2]
[315087962,1708810238669,-500.0,0.00019566,2]
[315087964,1708810238679,-500.0,0.00019566,2]
[315087966,1708810238689,-500.0,0.00019566,2]
[315087969,1708810238699,-500.0,0.00019566,2]
[315087970,1708810238709,-500.0,0.00019566,2]
[315087972,1708810238718,-500.0,0.00019566,2]
[315087975,1708810238728,-500.0,0.00019566,2]
[315087977,1708810238737,-276.55451874,0.00019566,2]
[315087978,1708810238747,-500.0,0.00019566,2]
[315087980,1708810238756,-734.7,0.00019566,2]
[315087983,1708810238766,-500.0,0.00019566,2]
[315087985,1708810238775,-500.0,0.00019566,2]
[315087987,1708810238784,-699.55,0.00019566,2]
[315087989,1708810238794,-500.0,0.00019566,2]
[315087991,1708810238812,-500.0,0.00019566,2]
[315087993,1708810238821,-500.0,0.00019566,2]
[315087995,1708810238830,-500.0,0.00019566,2]
[315087997,1708810238842,-797.22,0.00019566,2]
[315087999,1708810238851,-500.0,0.00019566,2]
[315088001,1708810238860,-500.0,0.00019566,2]
[315088003,1708810238868,-500.0,0.00019566,2]
[315088005,1708810238878,-500.0,0.00019566,2]
[315088007,1708810238887,-500.0,0.00019566,2]
[315088009,1708810238896,-5528.23,0.00019566,2]
[315088011,1708810238905,-500.0,0.00019566,2]
[315088013,1708810238914,-500.0,0.00019566,2]
[315088015,1708810238925,-500.0,0.00019566,2]
[315088017,1708810238935,-500.0,0.00019566,2]
[315088019,1708810238945,-500.0,0.00019566,2]
[315088021,1708810238955,-705.11,0.00019566,2]
[315088023,1708810238964,-500.0,0.00019566,2]
[315088025,1708810238973,-500.0,0.00019566,2]
[315088027,1708810238982,-500.0,0.00019566,2]
[315088029,1708810238992,-734.53,0.00019566,2]
[315088031,1708810239001,-500.0,0.00019566,2]
[315088033,1708810239010,-500.0,0.00019566,2]
[315088035,1708810239019,-500.0,0.00019566,2]
[315088037,1708810239028,-603.66,0.00019566,2]
[315088039,1708810239039,-505.16096815,0.00019566,2]
[315088041,1708810239048,-500.0,0.00019566,2]
[315088043,1708810239058,-500.0,0.00019566,2]
[315088046,1708810239068,-3346.27,0.00019566,2]
[315088048,1708810239077,-527.93,0.00019566,2]
[315088050,1708810239087,-673.95,0.00019566,2]
[315088052,1708810239097,-500.0,0.00019566,2]
[315088053,1708810239106,-5423.92,0.00019566,2]
[315088056,1708810239115,-1340.16,0.00019566,2]
[315088058,1708810239125,-500.0,0.00019566,2]
[315088059,1708810239134,-500.0,0.00019566,2]
[315088061,1708810239143,-500.0,0.00019566,2]
[315088064,1708810239152,-500.0,0.00019567,2]
[315088066,1708810239161,-500.0,0.00019567,2]
[315088068,1708810239171,-237.39225171,0.00019567,2]
[315088070,1708810239180,-215.77884278,0.00019567,2]
[315088072,1708810239192,-500.0,0.00019567,2]
[315088074,1708810239202,-500.0,0.00019567,2]
[315088076,1708810239211,-500.0,0.00019567,2]
[315088078,1708810239221,-500.0,0.00019567,2]
[315088079,1708810239229,-501.32633711,0.00019567,2]
[315088081,1708810239241,-1156.55,0.00019567,2]
[315088084,1708810239251,-500.57831314,0.00019567,2]
[315088085,1708810239260,-500.0,0.00019567,2]
[315088087,1708810239269,-500.90031616,0.00019567,2]
[315088089,1708810239278,-1000.0,0.00019567,2]
[315088091,1708810239288,-500.0,0.00019567,2]
[315088093,1708810239297,-500.30665054,0.00019567,2]
[315088095,1708810239306,-500.0,0.00019567,2]
[315088097,1708810239316,-500.0,0.00019567,2]
[315088099,1708810239325,-500.0,0.00019567,2]
[315088101,1708810239335,-500.0,0.00019567,2]
[315088103,1708810239345,-500.0,0.00019567,2]
[315088105,1708810239354,-500.0,0.00019567,2]
[315088107,1708810239363,-500.0,0.00019567,2]
[315088109,1708810239373,-500.0,0.00019567,2]
[315088111,1708810239382,-500.0,0.00019567,2]
[315088113,1708810239392,-594.0737504,0.00019567,2]
[315088115,1708810239401,-500.0,0.00019567,2]
[315088117,1708810239410,-500.0,0.00019567,2]
[315088119,1708810239419,-500.0,0.00019567,2]
[315088121,1708810239429,-500.0,0.00019567,2]
[315088123,1708810239437,-500.0,0.00019567,2]
[315088125,1708810239446,-500.0,0.00019567,2]
[315088127,1708810239455,-597.68918172,0.00019567,2]
[315088129,1708810239464,-500.0,0.00019567,2]
[315088131,1708810239473,-500.0,0.00019567,2]
[315088133,1708810239482,-500.0,0.00019567,2]
[315088135,1708810239491,-500.0,0.00019567,2]
[315088137,1708810239500,-500.0,0.00019567,2]
[315088139,1708810239509,-500.0,0.00019567,2]
[315088140,1708810239518,-500.0,0.00019567,2]
[315088141,1708810239527,-500.0,0.00019567,2]
[315088142,1708810239536,-500.0,0.00019567,2]
[315088143,1708810239546,-500.0,0.00019567,2]
[315088144,1708810239554,-500.0,0.00019567,2]
[315088145,1708810239563,-500.0,0.00019567,2]
[315088146,1708810239573,-500.0,0.00019567,2]
[315088147,1708810239581,-500.0,0.00019567,2]
[315088148,1708810239593,-500.0,0.00019567,2]
[315088149,1708810239601,-500.0,0.00019567,2]
[315088150,1708810239611,-418.87211237,0.00019567,2]
[315088151,1708810239620,-500.0,0.00019567,2]
[315088152,1708810239629,-500.0,0.00019567,2]
[315088153,1708810239638,-500.0,0.00019567,2]
[315088154,1708810239647,-500.0,0.00019567,2]
[315088155,1708810239657,-500.0,0.00019567,2]
[315088156,1708810239666,-500.0,0.00019567,2]